Cogmind - Beta 16 @@@ ROGUE MODE // 2025.11.03 @ 20:32:18 Player: pappous Result: Destroyed by B-75 Beast with Heavy Machine Gun Performance ------------- Evolutions (5) 2500 Regions Visited (16) 3200 Robots Destroyed (173) 865 Value Destroyed (8574) 8574 Prototype IDs (11) 220 Alien Tech Used (0) 0 Bonus (7821) 7821 TOTAL SCORE: 23180 Bonus ------- High Alert Combat Kills 1280 Follower Combat Kills 3183 Entered Garrisons 800 Used RIF Installer 1500 Built Enhanced Grunts 300 A7 Reached Mainframe 300 Met R17 at Cetus 500 Friendly Fire -42 Cogmind --------- Core Integrity 0/1000 Matter 12/300 Energy 100/100 System Corruption 2% Temperature Cool (0) Movement Core (50) Location -5/Garrison Parts ------- > --- POWER (1) -------- (None) > --- PROPULSION (5) --- (None) > --- UTILITY (8) ------ Improved Targeting Computer Relay Coupler [NC] (28) Relay Coupler [Hunter] (19) Relay Coupler [Heavy] (15) > --- WEAPON (3) ------- (None) > --- INVENTORY (5) ---- Quantum Reactor Autogun Enhanced Gauss Cannon Heavy Rocket Launcher Remote Datajack Peak State ------------ > --- POWER ------------ Antimatter Reactor > --- PROPULSION ------- Light Treads Centrium Heavy Treads Armored Huge Wheel > --- UTILITY ---------- Advanced Heat Sink High-capacity Storage Unit Improved Sensor Array Improved Signal Interpreter Improved Targeting Computer Layered Medium Armor Plating Centrium Medium Armor Plating Experimental Thermal Shield > --- WEAPON ----------- Beamcaster Advanced KE Penetrator Bore Cannon > --- INVENTORY -------- Antimatter Reactor Quantum Reactor Armored Huge Wheel High-capacity Storage Unit Improved Signal Interpreter Improved Targeting Computer Centrium Medium Armor Plating System Shield Relay Coupler [NC] Relay Coupler [Hunter] Advanced Variable Charge Gun Advanced Variable Charge Gun KE Penetrator Heavy Mass Driver Enhanced Gauss Cannon Heavy Rocket Launcher Long-range Missile Launcher Remote Datajack [Rating: 99] Favorites ----------- Power Improved Ion Engine Engine Improved Ion Engine Power Core Light Nuclear Core Reactor Antimatter Reactor Propulsion Light Treads Treads Light Treads Wheel Armored Huge Wheel Hover Unit Improved Hover Unit Utility High-capacity Storage Unit Device Improved Sensor Array Storage High-capacity Storage Unit Processor Improved Targeting Computer Hackware Relay Coupler [Brawler] Protection Medium Armor Plating Weapon Advanced Beam Rifle Energy Gun Advanced Beam Rifle Ballistic Gun High-powered Shotgun Ballistic Cannon Bore Cannon Launcher Mini Grenade Launcher Special Weapon Remote Datajack Special Melee Weapon Datajack Build | -11 -10 -9 -9 -9 -9 -7 -7 -7 -7 -6 -6 -6 -6 -6 -5 -5 ------- Run | Yrd Mat Mat Sto Gar Rec Fac Gar Fac Gar Fac Ext Cet Arc Hub Fac Gar Slots Evolved 10 | . . 2 . . . 4 . . . 2 . . . . 2 . Power . | . . . . . . . . . . . . . . . . . Propulsion 3 | . . . . . . 2 . . . 1 . . . . . . Utility 6 | . . 2 . . . 2 . . . . . . . . 2 . Weapon 1 | . . . . . . . . . . 1 . . . . . . Parts Attached 148 | 6 8 21 8 16 1 4 5 1 9 14 23 8 3 2 6 13 Power 15 | 1 . 2 1 2 . . . . . 1 3 2 1 . . 2 Engine 11 | 1 . 1 1 2 . . . . . 1 3 1 . . . 1 Core 1 | . . 1 . . . . . . . . . . . . . . Reactor 3 | . . . . . . . . . . . . 1 1 . . 1 Propulsion 34 | 2 3 4 3 5 . 2 1 . . 3 7 1 . . 1 2 Treads 25 | 1 1 4 3 4 . 2 1 . . 2 4 1 . . 1 1 Leg . | . . . . . . . . . . . . . . . . . Wheel 7 | 1 . . . 1 . . . . . 1 3 . . . . 1 Hover 2 | . 2 . . . . . . . . . . . . . . . Flight . | . . . . . . . . . . . . . . . . . Utility 47 | 1 3 7 3 5 1 1 2 1 4 3 2 3 1 1 3 6 Device 13 | . . 2 2 . . 1 . . 1 2 1 2 . . 2 . Storage 5 | 1 2 . . . . . . . . . . . 1 . . 1 Processor 9 | . 1 3 . 1 1 . 1 1 . 1 . . . . . . Hackware 9 | . . . . 2 . . . . 3 . . . . . . 4 Protection 11 | . . 2 1 2 . . 1 . . . 1 1 . 1 1 1 Artifact . | . . . . . . . . . . . . . . . . . Weapon 52 | 2 2 8 1 4 . 1 2 . 5 7 11 2 1 1 2 3 Energy Gun 17 | 1 1 4 1 . . . . . 2 2 3 1 . . 1 1 Energy Cannon . | . . . . . . . . . . . . . . . . . Ballistic Gun 20 | 1 1 3 . 3 . 1 2 . 1 2 3 1 1 . . 1 Ballistic Cannon 9 | . . . . . . . . . 1 2 5 . . . 1 . Launcher 4 | . . 1 . . . . . . . 1 . . . 1 . 1 Special Weapon 1 | . . . . . . . . . 1 . . . . . . . Impact Weapon . | . . . . . . . . . . . . . . . . . Slashing Weapon . | . . . . . . . . . . . . . . . . . Piercing Weapon . | . . . . . . . . . . . . . . . . . Special Melee Weapon 1 | . . . . 1 . . . . . . . . . . . . Unidentified Prototypes 9 | . 1 1 1 . . . . . . . . 4 1 . 1 . Parts Lost 49 | . 1 2 1 4 . . . . 1 2 14 3 . 3 . 18 Power 5 | . . . . 1 . . . . . . 2 1 . . . 1 Propulsion 14 | . 1 . . . . . . . . 2 4 1 . 1 . 5 Utility 15 | . . 2 1 2 . . . . . . 2 . . 1 . 7 Weapon 15 | . . . . 1 . . . . 1 . 6 1 . 1 . 5 Highest Loss Streak 16 | . 1 1 1 2 . . . . 1 2 9 3 . 3 . 16 To Critical Strikes 1 | . . . . . . . . . . . . 1 . . . . Average Backups 17 | 2 9 17 19 19 19 17 19 19 18 17 16 16 17 18 17 13 Power 1 | . 1 1 . 1 1 1 . . 1 . 1 . 1 1 1 1 Propulsion 2 | 1 3 4 4 3 4 2 2 1 1 . 1 1 1 1 1 . Utility 7 | . 1 7 8 8 7 6 8 9 9 8 8 8 8 7 6 5 Weapon 5 | . 2 3 6 5 6 6 6 7 6 6 5 5 6 7 7 4 Tool/Special . | . . . . . . . . . . . . . . . . . Unused Backups 24 | . 2 6 . . . . 5 2 1 1 . 2 . . . 5 Power 4 | . . 1 . . . . 1 . . . . . . . . 2 Propulsion 3 | . 1 . . . . . 1 1 . . . . . . . . Utility 11 | . . 1 . . . . 2 1 1 1 . 2 . . . 3 Weapon 6 | . 1 4 . . . . 1 . . . . . . . . . Tool/Special . | . . . . . . . . . . . . . . . . . Average Slot Usage (%) 92 | . 97 98 99 98 100 92 96 84 83 86 91 83 85 84 79 63 Engine 7 | . 14 8 2 10 11 7 7 7 7 6 5 4 . . . . Treads 19 | . 12 22 22 21 22 28 29 23 23 17 18 13 13 12 5 8 Wheel 2 | . . . . . . . . . . 5 9 6 6 6 5 1 Device 7 | . . 10 12 9 . 2 4 . . 4 12 12 13 12 15 9 Storage 8 | . 14 11 11 11 11 7 7 7 7 6 6 6 6 6 5 4 Processor 13 | . 11 11 11 7 17 15 15 15 15 16 13 13 13 13 11 8 Hackware 3 | . . . . 5 11 7 7 7 7 6 . . . . . 6 Protection 6 | . . 9 9 10 4 7 7 7 7 2 4 6 5 6 10 5 Energy Gun 8 | . 14 11 10 10 11 7 7 7 6 11 2 10 11 5 4 3 Ballistic Gun 8 | . 14 10 11 8 10 7 6 7 6 5 7 4 7 12 5 5 Ballistic Cannon 1 | . . . . . . . . . . . 7 2 . . 4 1 Peak Build Rating 99 | 6 13 23 23 24 22 31 48 50 55 60 58 86 86 85 99 99 Average Rating 39 | 4 11 18 21 21 21 28 33 49 50 54 49 75 85 84 95 63 On Entrance 43 | . 6 12 23 21 20 22 29 48 50 52 58 48 86 85 75 99 Avg Prop Armor Cover (%) 10 | 16 12 . . 9 . . . . . 6 12 13 5 14 4 12 Naked Turns . | . . . . . . . . . . . . . . . . . Heaviest Build 95 | 13 51 61 58 58 55 58 67 67 82 72 75 84 80 81 95 95 Greatest Support 120 | 10 40 43 43 40 40 86 116 116 116 116 118 100 100 80 80 120 Greatest Overweight (x) 22 | 1 4 1 1 4 1 . . . . 6 6 2 . 2 3 22 Average Overweight (x) . | . . 1 1 1 1 . . . . 1 2 1 . 1 1 . Largest Inventory Capacity 20 | 8 20 20 20 20 20 20 20 20 20 20 20 20 20 20 20 20 Average Capacity 19 | 7 12 20 20 20 20 20 20 20 20 20 20 20 20 20 20 17 Most Carried 20 | 6 13 20 20 20 20 18 20 20 20 20 20 20 20 20 20 20 Average Carried 18 | 2 9 17 19 19 19 17 19 19 19 19 19 19 19 19 19 14 Final Capacity 20 | 8 20 20 20 20 20 20 20 20 20 20 20 20 20 20 20 5 Final Carried 20 | 4 13 20 20 20 19 18 20 20 20 20 20 20 20 20 20 5 Class Distribution -------------------- 30% | Scavenger-Mutant 20% | Mutant 15% | Commander-Mutant 12% | Scavenger-Tank 8% | Scavenger-Skirmisher 6% | Commander-Tank 4% | Commander-Skirmisher Dominant Class ---------------- Mutant | -10/Materials Mutant | -9/Materials Scavenger-Mutant | -9/Storage Scavenger-Mutant | -9/Garrison Scavenger-Mutant | -9/Recycling Scavenger-Mutant | -7/Factory Commander-Mutant | -7/Garrison Commander-Mutant | -7/Factory Commander-Mutant | -7/Garrison Commander-Tank | -6/Factory Scavenger-Skirmisher | -6/Extension Commander-Tank | -6/Cetus Scavenger-Tank | -6/Archives Scavenger-Tank | -6/Hub_04(d) Scavenger-Tank | -5/Factory Mutant | -5/Garrison Resources | -11 -10 -9 -9 -9 -9 -7 -7 -7 -7 -6 -6 -6 -6 -6 -5 -5 ----------- Run | Yrd Mat Mat Sto Gar Rec Fac Gar Fac Gar Fac Ext Cet Arc Hub Fac Gar Matter Collected 4706 | 211 218 705 228 395 83 88 19 121 344 329 1095 306 88 128 192 156 Remotely 448 | . . 284 164 . . . . . . . . . . . . . Salvage Created 7191 | . 337 1102 726 784 199 132 19 . 546 559 1331 248 152 450 238 368 Parts 324 | . 22 57 37 47 10 6 . . 18 18 54 14 7 17 10 7 Haulers Intercepted 1 | . . . . . . . . . . . . . . 1 . . Recyclers Shooed 4 | . . . . . 1 . . . . 1 . . . 2 . . Parts Field Recycled . | . . . . . . . . . . . . . . . . . Retrieved Matter . | . . . . . . . . . . . . . . . . . Parts Self-Destructed . | . . . . . . . . . . . . . . . . . Prevented . | . . . . . . . . . . . . . . . . . Parts Restored . | . . . . . . . . . . . . . . . . . Kills | -11 -10 -9 -9 -9 -9 -7 -7 -7 -7 -6 -6 -6 -6 -6 -5 -5 ------- Run | Yrd Mat Mat Sto Gar Rec Fac Gar Fac Gar Fac Ext Cet Arc Hub Fac Gar Combat Hostiles Destroyed 142 | . 8 26 15 24 3 3 . . 16 8 17 3 2 3 5 9 Guns 108 | . 8 25 15 19 3 3 . . 10 4 9 1 2 3 3 3 Cannons 11 | . . . . . . . . . . . 7 2 . . 2 . AOE 23 | . . 1 . 5 . . . . 6 4 1 . . . . 6 Classes Destroyed 15 | . 3 4 . 4 . . . . 1 1 1 . . 1 . . Worker 10 | . . 4 2 . . . . . . 3 . . . 1 . . Builder 2 | . . 1 . . . . . . . . 1 . . . . . Tunneler 1 | . . . . . . . . . . 1 . . . . . . Hauler 1 | . . . . . . . . . . . . . . 1 . . Recycler 10 | . . 2 1 . 1 . . . . 1 3 . . 2 . . Watcher 3 | . 1 . 2 . . . . . . . . . . . . . Swarmer 30 | . 1 11 3 4 . . . . 5 . 2 . . 2 2 . Grunt 63 | . 7 8 6 11 . 3 . . 6 6 7 . . . 2 7 Brawler 4 | . . . . 1 . . 1 . . 1 1 . . . . . Duelist 8 | . . . . 4 . . . . . . 2 . . . . 2 Sentry 28 | . . 7 6 2 3 . . . 4 . 2 1 2 1 . . Demolisher 1 | . . . . . . . . . . . 1 . . . . . Specialist 2 | . . . . 1 . . . . . . 1 . . . . . Hunter 2 | . . . . 1 . . . . . 1 . . . . . . Programmer 2 | . . . . . . . . . 1 . . . . . 1 . Cetus Guard 3 | . . . . . . . . . . . . 3 . . . . Enhanced Grunt 1 | . . . . . . . . . . . . . . . . 1 Thug 1 | . . . . . . . . . . . 1 . . . . . Savage 1 | . . . . . . . . . . . 1 . . . . . Best Kill Streak 8 | . 4 5 4 6 2 3 . . 7 5 3 2 2 4 3 8 Combat Bots Only 8 | . 4 4 3 6 2 3 . . 7 4 3 2 2 2 3 8 Max Kills in Single Turn 3 | . 1 1 2 2 1 1 1 . 2 3 3 1 1 2 1 3 Gunslinging 1 | . . . . 1 . . . . . . . . . . . . Exploded 3 | . . 1 . 2 . . . . 2 3 1 . . . . 3 Melee . | . . . . . . . . . . . . . . . . . Uniques/NPCs Destroyed . | . . . . . . . . . . . . . . . . . Combat | -11 -10 -9 -9 -9 -9 -7 -7 -7 -7 -6 -6 -6 -6 -6 -5 -5 -------- Run | Yrd Mat Mat Sto Gar Rec Fac Gar Fac Gar Fac Ext Cet Arc Hub Fac Gar Hostile Shots Fired 981 | . 39 94 42 73 . 12 . 4 129 54 220 43 2 59 15 195 Missed 291 | . 16 22 8 23 . 2 . . 36 24 90 14 1 23 2 30 Hits 690 | . 23 72 34 50 . 10 . 4 93 30 130 29 1 36 13 165 Melee 28 | . . . . 4 . . . . 1 . . . . . . 23 Projectile 662 | . 23 72 34 46 . 10 . 4 92 30 130 29 1 36 13 142 AOE 5 | . . . . . . . . . . . 5 . . . . . Critical Strikes 30 | . . 4 . 2 . 1 . . . . 4 7 . 1 1 10 Damage Taken 11808 | . 251 898 439 655 . 166 141 72 904 448 2171 832 43 566 244 3978 Core 1952 | . 73 158 32 118 . 17 93 . 47 31 259 89 . 18 44 973 Absorbed by Shields 264 | . . . . 9 . . . . . . 152 . . . . 103 Reduced by Siege Mode 159 | . . . . . . . . . . . . . . . . 159 Ignored by Resistances 278 | . . . . . . . . . . . . . . . . 278 Core Remaining (%) 64 | 100 70 . . . 23 . . . 77 . . . . 53 . . Volleys Fired 438 | . 21 66 31 46 8 8 14 1 46 41 56 27 6 18 9 40 Largest 3 | . 2 2 2 2 2 2 2 2 2 3 3 3 3 3 3 3 Hottest 240 | . 79 86 86 86 86 86 89 86 89 160 161 176 178 148 158 240 Shots Fired 866 | . 42 125 59 80 15 16 24 2 74 86 140 50 11 39 27 76 Gun 732 | . 42 120 59 77 15 16 24 2 61 69 86 37 11 36 18 59 Cannon 88 | . . . . . . . . . . 10 45 13 . . 9 11 Launcher 30 | . . 5 . 3 . . . . 6 5 5 . . . . 6 Special 16 | . . . . . . . . . 7 2 4 . . 3 . . Kinetic 471 | . 21 59 28 32 7 8 12 1 31 35 111 31 7 30 18 40 Thermal 341 | . 21 53 31 45 8 8 12 1 30 44 20 19 4 6 9 30 Explosive 30 | . . 5 . 3 . . . . 6 5 5 . . . . 6 Electromagnetic 8 | . . 8 . . . . . . . . . . . . . . Robot Hit Streak 20 | . 7 20 13 12 5 10 2 2 17 15 15 17 6 9 8 16 Robot Miss Streak 6 | . 3 2 3 5 3 2 . 1 3 4 5 3 1 1 2 6 Penetration Max 1 | . . . . . . . . . . . 1 1 1 1 1 1 Secondary Targets 6 | . . 2 . 1 . 2 . . 1 . . . . . . . Max Gunslinging Chain 1 | . . 1 . 1 . 1 . . 1 . . . . . . . Shots Hit Robots 565 | . 26 83 38 47 11 13 22 1 42 48 94 33 8 31 16 52 Core Hits 402 | . 12 44 29 32 6 7 3 . 43 47 80 15 5 15 22 42 Critical Kills 14 | . . . . . 1 . . . . . 7 2 . 3 . 1 Critical Parts Destroyed 28 | . . . . 1 . . . . . . 19 2 . 1 1 4 Critical Strikes 67 | . . 7 2 4 2 . . . 3 1 31 5 . 4 2 6 Burn 22 | . . 7 2 3 1 . . . 3 1 3 . . . 1 1 Destroy 45 | . . . . 1 1 . . . . . 28 5 . 4 1 5 Melee Attacks 25 | . . . . 2 2 . 21 . . . . . . . . . Impact . | . . . . . . . . . . . . . . . . . Slashing . | . . . . . . . . . . . . . . . . . Piercing . | . . . . . . . . . . . . . . . . . Sneak Attacks 20 | . . . . . 2 . 18 . . . . . . . . . Combat Hostiles . | . . . . . . . . . . . . . . . . . Follow-up Attacks . | . . . . . . . . . . . . . . . . . Damage Inflicted 17441 | . 436 1479 830 1186 181 261 177 22 1279 1577 3278 907 234 879 572 4143 Guns 11202 | . 436 1347 830 879 181 261 20 22 711 1054 1890 759 234 879 382 1317 Cannons 1558 | . . . . . . . . . . . 947 148 . . 63 400 Explosions 4667 | . . 118 . 307 . . 157 . 568 523 441 . . . 127 2426 Melee . | . . . . . . . . . . . . . . . . . Ramming 14 | . . 14 . . . . . . . . . . . . . . Kinetic 7841 | . 182 591 370 379 81 141 . 22 431 433 2397 612 180 743 288 991 Thermal 4878 | . 254 715 460 500 100 120 20 . 280 621 440 295 54 136 157 726 Explosive 4540 | . . 118 . 307 . . 157 . 568 523 441 . . . . 2426 Electromagnetic 168 | . . 41 . . . . . . . . . . . . 127 . Impact . | . . . . . . . . . . . . . . . . . Slashing . | . . . . . . . . . . . . . . . . . Piercing . | . . . . . . . . . . . . . . . . . Highest Corruption 2 | . . 2 2 2 2 . . . . . . 1 1 1 2 2 Average Corruption 1 | . . 2 2 2 2 . . . . . . 1 1 1 1 2 Corruption Purged . | . . . . . . . . . . . . . . . . . Corruption Blocked . | . . . . . . . . . . . . . . . . . Effects 91 | . . 23 14 14 20 . . . . . . 4 4 5 2 5 Message Errors 17 | . . 4 5 1 2 . . . . . . 2 . 2 . 1 Matter Fused 15 | . . 4 3 2 5 . . . . . . . . . . 1 Heat Flow Errors 17 | . . 3 2 2 6 . . . . . . . 3 1 . . Energy Discharges 18 | . . 5 2 5 2 . . . . . . . . 1 2 1 Data Loss (minor) 11 | . . 4 . 2 3 . . . . . . . . . . 2 Data Loss (major) 5 | . . 2 1 . 2 . . . . . . . . . . . Misfires 5 | . . 1 . 2 . . . . . . . 1 1 . . . Alerts 2 | . . . 1 . . . . . . . . . . 1 . . Weapon Failures 1 | . . . . . . . . . . . . 1 . . . . Overload Shots 5 | . . . . . . . . . . . . . . . . 5 Overflow Damage 48 | . . . . . . . . . 5 . 1 . . . . 42 Projectiles 5 | . . . . . . . . . . . 1 . . . . 4 Explosions 43 | . . . . . . . . . 5 . . . . . . 38 Melee . | . . . . . . . . . . . . . . . . . Knockbacks 10 | . . . . . . . . . . . 7 . . . 1 2 Impact . | . . . . . . . . . . . . . . . . . Kinetic 10 | . . . . . . . . . . . 7 . . . 1 2 Secondary . | . . . . . . . . . . . . . . . . . Self-Inflicted Damage 395 | . . 56 . 80 . . 73 . 26 . . . . . . 160 Shots 11 | . . 3 . 2 . . 1 . 1 . . . . . . 4 Rammed 4 | . . 4 . . . . . . . . . . . . . . Targets Rammed 5 | . . 5 . . . . . . . . . . . . . . Kicked . | . . . . . . . . . . . . . . . . . Crushed 1 | . . 1 . . . . . . . . . . . . . . Highest Temperature 1044 | . 252 228 247 256 218 228 15 15 156 373 297 160 197 145 81 1044 Average Temperature 87 | . 84 54 53 76 62 130 10 10 45 87 50 80 57 26 25 273 Received Heat Transfer 3160 | . 111 309 120 150 . 108 . . 276 99 814 54 . 42 . 1077 Effects 33 | . 1 . 3 1 . . . . . 1 . . . . . 27 Shutdowns 4 | . . . . . . . . . . . . . . . . 4 Energy Bleed 3 | . 1 . . 1 . . . . . 1 . . . . . . Interference 5 | . . . 3 . . . . . . . . . . . . 2 Matter Decay 3 | . . . . . . . . . . . . . . . . 3 Short Circuit 2 | . . . . . . . . . . . . . . . . 2 Damage (minor) 4 | . . . . . . . . . . . . . . . . 4 Damage (major) 9 | . . . . . . . . . . . . . . . . 9 Damage (core) 3 | . . . . . . . . . . . . . . . . 3 Siege Activations 1 | . . . . . . . . . . . . . . . . 1 Total Turns 24 | . . . . . . . . . . . . . . . . 24 Longest Duration 24 | . . . . . . . . . . . . . . . . 24 Martial Activations . | . . . . . . . . . . . . . . . . . Shielding Activations . | . . . . . . . . . . . . . . . . . Robots Disrupted . | . . . . . . . . . . . . . . . . . Combat Hostiles . | . . . . . . . . . . . . . . . . . Robots Corrupted . | . . . . . . . . . . . . . . . . . Combat Hostiles . | . . . . . . . . . . . . . . . . . Parts Fried . | . . . . . . . . . . . . . . . . . Impact Corruptions . | . . . . . . . . . . . . . . . . . Robots Melted . | . . . . . . . . . . . . . . . . . Combat Hostiles . | . . . . . . . . . . . . . . . . . Parts Melted 18 | . . 5 . 1 1 . . . 5 3 2 1 . . . . Heat Transferred 10658 | . 555 2035 999 1147 259 222 37 . 740 1221 1130 592 111 300 333 977 Parts Sabotaged . | . . . . . . . . . . . . . . . . . Parts Stolen . | . . . . . . . . . . . . . . . . . Parts Stripped . | . . . . . . . . . . . . . . . . . Power Chain Reactions . | . . . . . . . . . . . . . . . . . Alert | -11 -10 -9 -9 -9 -9 -7 -7 -7 -7 -6 -6 -6 -6 -6 -5 -5 ------- Run | Yrd Mat Mat Sto Gar Rec Fac Gar Fac Gar Fac Ext Cet Arc Hub Fac Gar Maximum Alert Level 4 | . . 2 1 3 2 . 3 2 4 3 4 3 2 2 2 3 Low Security (%) 32 | 100 100 66 4 . 68 100 49 . . . 17 . . 41 6 . Level 1 31 | . . 27 95 17 20 . 23 92 14 . 51 . 85 55 84 15 Level 2 11 | . . 5 . 36 10 . 24 7 12 2 2 2 14 2 8 70 Level 3 21 | . . . . 46 . . 3 . 29 97 27 97 . . . 13 Level 4 3 | . . . . . . . . . 43 . 1 . . . . . Level 5 . | . . . . . . . . . . . . . . . . . High Security . | . . . . . . . . . . . . . . . . . Max Security . | . . . . . . . . . . . . . . . . . Peak Influence 1438 | . 92 484 325 1076 484 32 766 401 1438 916 1300 815 429 476 440 752 Initial 754 | . . 9 200 201 484 . 15 401 224 754 368 726 310 90 249 296 Average 394 | . 27 128 271 678 119 14 314 347 912 779 461 772 344 217 291 529 Influence Increases 10090 | . 256 938 488 955 90 72 751 50 1344 638 1992 397 179 757 517 666 Destroy 0b10 Robot/C 4440 | . 160 520 300 520 80 60 . 20 560 300 940 160 80 260 160 320 Destroy 0b10 Robot/NC 205 | . 5 35 25 . 5 . 5 . . 30 45 10 . 35 10 . Destroy Leader 662 | . 22 130 104 30 . 10 . 10 50 62 94 . . 86 34 30 Allied During Kill 2063 | . . . . 14 5 2 4 20 360 156 755 163 80 329 93 82 Successful Hack 67 | . 5 . 9 . . . . . 14 4 32 3 . . . . Disable Machine 390 | . . 45 30 . . . . . . 45 45 45 15 30 135 . Anti-Garrison Action 1300 | . . . . 250 . . 700 . 300 . . . . . . 50 Destroy Structure 498 | . 4 28 5 96 . . 42 . 60 41 51 16 4 17 70 64 Partial Spotted 30 | . . . 15 . . . . . . . 15 . . . . . Lose Combat Pursuer 435 | . 60 180 . 45 . . . . . . 15 . . . 15 120 Influence Decreases 9348 | . 234 484 654 189 1166 50 7 495 227 1322 1448 920 695 507 602 348 Entered New Map 4123 | . . 13 276 109 592 . 7 365 97 684 386 572 465 169 260 128 Time Decay 3776 | . 234 452 368 . 404 30 . 130 . 498 662 238 190 268 302 . Lost Part 479 | . . 19 10 40 . . . . 10 20 140 30 . 30 . 180 Lost Ally 820 | . . . . 40 20 20 . . 120 120 260 80 40 40 40 40 Purge Threat 150 | . . . . . 150 . . . . . . . . . . . Squads Dispatched 21 | . 1 2 2 . . 1 . 1 . 3 5 . . 4 2 . Investigation 5 | . . 1 1 . . 1 . . . 1 1 . . . . . Extermination 3 | . . . . . . . . . . 1 . . . 1 1 . Reinforcement 9 | . 1 1 1 . . . . 1 . 1 1 . . 3 . . Assault 3 | . . . . . . . . . . . 3 . . . . . Garrison 1 | . . . . . . . . . . . . . . . 1 . Intercept . | . . . . . . . . . . . . . . . . . Searches Triggered . | . . . . . . . . . . . . . . . . . Construction Impeded . | . . . . . . . . . . . . . . . . . Haulers Reinforced . | . . . . . . . . . . . . . . . . . Active Scanning Responses . | . . . . . . . . . . . . . . . . . Cargo Convoy Interrupts . | . . . . . . . . . . . . . . . . . Stealth | -11 -10 -9 -9 -9 -9 -7 -7 -7 -7 -6 -6 -6 -6 -6 -5 -5 --------- Run | Yrd Mat Mat Sto Gar Rec Fac Gar Fac Gar Fac Ext Cet Arc Hub Fac Gar Distress Signals 16 | . 4 2 2 . . . . . . 1 3 2 . 1 1 . Communications Jammed . | . . . . . . . . . . . . . . . . . Distress Signals . | . . . . . . . . . . . . . . . . . Times Spotted 312 | . 21 42 20 29 1 3 . 2 32 25 56 10 13 17 11 30 Peak Tracking Total 11 | . 5 7 3 7 . 3 . 1 7 5 6 5 2 5 4 11 Tactical Retreats 16 | . 2 6 . 3 . . . . . . 1 . . . 1 3 Traps | -11 -10 -9 -9 -9 -9 -7 -7 -7 -7 -6 -6 -6 -6 -6 -5 -5 ------- Run | Yrd Mat Mat Sto Gar Rec Fac Gar Fac Gar Fac Ext Cet Arc Hub Fac Gar Traps Triggered 24 | . . 2 1 14 . . 2 . . 2 1 . . . . 2 Indirectly . | . . . . . . . . . . . . . . . . . Trap Hack Attempts 1 | . . . . 1 . . . . . . . . . . . . Triggered . | . . . . . . . . . . . . . . . . . Disarmed . | . . . . . . . . . . . . . . . . . Reprogrammed 1 | . . . . 1 . . . . . . . . . . . . Reused . | . . . . . . . . . . . . . . . . . Traps Extracted . | . . . . . . . . . . . . . . . . . Installed . | . . . . . . . . . . . . . . . . . Triggered . | . . . . . . . . . . . . . . . . . Machines | -11 -10 -9 -9 -9 -9 -7 -7 -7 -7 -6 -6 -6 -6 -6 -5 -5 ---------- Run | Yrd Mat Mat Sto Gar Rec Fac Gar Fac Gar Fac Ext Cet Arc Hub Fac Gar Machines Disabled 43 | . . 3 2 4 . . 4 . 3 3 7 4 1 2 9 1 Max in Single Turn 5 | . . 1 1 2 . . 1 . 1 1 2 1 . . 5 1 Garrison Relay 9 | . . . . 2 . . 3 . 3 . . . . . . 1 Phase Generator 2 | . . . . 1 . . 1 . . . . . . . . . Machines Repaired . | . . . . . . . . . . . . . . . . . Machines Dismantled . | . . . . . . . . . . . . . . . . . Machines Sabotaged . | . . . . . . . . . . . . . . . . . Overloaded Fab Kills . | . . . . . . . . . . . . . . . . . Hacking | -11 -10 -9 -9 -9 -9 -7 -7 -7 -7 -6 -6 -6 -6 -6 -5 -5 --------- Run | Yrd Mat Mat Sto Gar Rec Fac Gar Fac Gar Fac Ext Cet Arc Hub Fac Gar Machines Accessed 44 | . 2 8 3 1 4 2 . 4 2 4 8 2 1 2 1 . Terminals 35 | . 2 7 2 1 4 . . 3 2 2 8 2 . 2 . . Fabricators 2 | . . . . . . 1 . . . 1 . . . . . . Repair Stations . | . . . . . . . . . . . . . . . . . Recycling Units . | . . . . . . . . . . . . . . . . . Scanalyzers 2 | . . 1 . . . . . . . 1 . . . . . . Garrison Access 4 | . . . 1 . . 1 . 1 . . . . . . 1 . Total Hacks 101 | . 3 15 8 1 9 6 . 6 3 9 11 2 25 2 1 . Successful 50 | . 1 4 2 . 2 1 . 2 1 4 6 1 25 . 1 . Failed 51 | . 2 11 6 1 7 5 . 4 2 5 5 1 . 2 . . Catastrophic 15 | . 1 5 . . . 1 . 4 . . 2 1 . 1 . . Database Lockouts . | . . . . . . . . . . . . . . . . . Manual 26 | . 1 10 . . 3 . . 4 . 6 . 2 . . . . Terminals 60 | . 3 11 6 1 9 . . 5 3 7 11 2 . 2 . . Fabricators 6 | . . . . . . 5 . . . 1 . . . . . . Repair Stations . | . . . . . . . . . . . . . . . . . Recycling Units . | . . . . . . . . . . . . . . . . . Scanalyzers 5 | . . 4 . . . . . . . 1 . . . . . . Garrison Access 5 | . . . 2 . . 1 . 1 . . . . . . 1 . Terminal Hacks 41 | . 1 1 1 . 2 . . 1 1 2 6 1 25 . . . Record 26 | . . . . . . . . . . . . 1 25 . . . Prototype ID Bank 2 | . 1 . 1 . . . . . . . . . . . . . Open Door 6 | . . . . . . . . . . 1 5 . . . . . Branch Access Points 3 | . . 1 . . 1 . . . . 1 . . . . . . Emergency Access Points 2 | . . . . . . . . 1 1 . . . . . . . Unreport Threat 1 | . . . . . 1 . . . . . . . . . . . Locate Traps 1 | . . . . . . . . . . . 1 . . . . . Fabricator Hacks 1 | . . . . . . . . . . 1 . . . . . . Build 1 | . . . . . . . . . . 1 . . . . . . Repair Station Hacks . | . . . . . . . . . . . . . . . . . Recycling Unit Hacks . | . . . . . . . . . . . . . . . . . Scanalyzer 4 | . . 3 . . . . . . . 1 . . . . . . Insert Component 1 | . . 1 . . . . . . . . . . . . . . Analyze 1 | . . 1 . . . . . . . . . . . . . . Retrieve Study 2 | . . 1 . . . . . . . 1 . . . . . . Garrison Access Hacks 4 | . . . 1 . . 1 . 1 . . . . . . 1 . Unlock Access 4 | . . . 1 . . 1 . 1 . . . . . . 1 . Unauthorized Hacks . | . . . . . . . . . . . . . . . . . Terminals . | . . . . . . . . . . . . . . . . . Fabricators . | . . . . . . . . . . . . . . . . . Repair Stations . | . . . . . . . . . . . . . . . . . Recycling Units . | . . . . . . . . . . . . . . . . . Scanalyzers . | . . . . . . . . . . . . . . . . . Garrison Access . | . . . . . . . . . . . . . . . . . Data Cores Recovered . | . . . . . . . . . . . . . . . . . Used . | . . . . . . . . . . . . . . . . . Hacking Detections 32 | . 2 6 1 1 3 1 . 4 1 2 7 1 . 2 1 . Full Trace Events 2 | . . . . . . 1 . . 1 . . . . . . . Feedback Events . | . . . . . . . . . . . . . . . . . Feedback Blocked . | . . . . . . . . . . . . . . . . . Robot Schematics Acquired . | . . . . . . . . . . . . . . . . . Robots Built . | . . . . . . . . . . . . . . . . . Authchips . | . . . . . . . . . . . . . . . . . Time . | . . . . . . . . . . . . . . . . . Total Robot Build Rating . | . . . . . . . . . . . . . . . . . Part Schematics Acquired 1 | . . 1 . . . . . . . . . . . . . . Parts Built 2 | . . . . . . . . . . 2 . . . . . . Authchips . | . . . . . . . . . . . . . . . . . Time 95 | . . . . . . . . . . 95 . . . . . . Total Part Build Rating 10 | . . . . . . . . . . 10 . . . . . . Part Studies Acquired 2 | . . 1 . . . . . . . 1 . . . . . . Parts Repaired . | . . . . . . . . . . . . . . . . . Time . | . . . . . . . . . . . . . . . . . Parts Recycled . | . . . . . . . . . . . . . . . . . Recycled Matter . | . . . . . . . . . . . . . . . . . Retrieved Matter . | . . . . . . . . . . . . . . . . . Retrieved Components . | . . . . . . . . . . . . . . . . . Parts Scanalyzed 1 | . . 1 . . . . . . . . . . . . . . Part Schematics Acquired 1 | . . 1 . . . . . . . . . . . . . . Parts Damaged . | . . . . . . . . . . . . . . . . . Bothacking | -11 -10 -9 -9 -9 -9 -7 -7 -7 -7 -6 -6 -6 -6 -6 -5 -5 ------------ Run | Yrd Mat Mat Sto Gar Rec Fac Gar Fac Gar Fac Ext Cet Arc Hub Fac Gar Used RIF Installer 3 | . . . . 1 . . 1 . 1 . . . . . . . Command Fork 1 | . . . . . . . 1 . . . . . . . . . Robot Detection 1 | . . . . . . . . . 1 . . . . . . . Robots Hacked 9 | . . . . 2 . . . . 5 2 . . . . . . Non-combat . | . . . . . . . . . . . . . . . . . Combat 9 | . . . . 2 . . . . 5 2 . . . . . . Robot Hacks Applied 9 | . . . . 2 . . . . 5 2 . . . . . . streamctrl_high 3 | . . . . . . . . . 3 . . . . . . . formatsys_high 6 | . . . . 2 . . . . 2 2 . . . . . . Relay Couplers Released 33 | . . . . 6 . . 12 . 11 . . . . . . 4 Machine Destruction 33 | . . . . 6 . . 12 . 11 . . . . . . 4 Attached 9 | . . . . 2 . . . . 3 . . . . . . 4 Fabnet Peak Effective % . | . . . . . . . . . . . . . . . . . Robots Rewired 34 | . . . . 2 . . 12 . 2 1 17 . . . . . Allies Hacked 2 | . . . . . . . . . 1 . 1 . . . . . Hacks Repelled . | . . . . . . . . . . . . . . . . . Allies | -11 -10 -9 -9 -9 -9 -7 -7 -7 -7 -6 -6 -6 -6 -6 -5 -5 -------- Run | Yrd Mat Mat Sto Gar Rec Fac Gar Fac Gar Fac Ext Cet Arc Hub Fac Gar Total Allies 59 | . . . . 4 . . 12 . 8 3 25 5 . . . 2 Largest Group 23 | . . . . 2 2 1 11 9 10 9 23 15 11 8 4 3 Highest-Rated Group 850 | . . . . 42 42 21 229 200 213 207 755 850 649 394 228 220 Highest-Rated Ally 159 | . . . . 21 21 21 30 30 30 32 159 137 137 96 96 96 Total Orders 6 | . . . . 4 . . 2 . . . . . . . . . STAY 3 | . . . . 2 . . 1 . . . . . . . . . FOLLOW 3 | . . . . 2 . . 1 . . . . . . . . . Ally Attacks 490 | . . . . 8 1 4 . 8 69 48 183 64 18 45 20 22 Total Damage 13121 | . . . . 170 17 45 . 108 1407 1889 4467 1725 492 1486 627 688 Kills 99 | . . . . 2 1 . . 1 12 10 36 7 2 15 5 8 Allies Corrupted 2 | . . . . . . . . . 1 . 1 . . . . . Allies Melted . | . . . . . . . . . . . . . . . . . Intel | -11 -10 -9 -9 -9 -9 -7 -7 -7 -7 -6 -6 -6 -6 -6 -5 -5 ------- Run | Yrd Mat Mat Sto Gar Rec Fac Gar Fac Gar Fac Ext Cet Arc Hub Fac Gar Active Infowar (turns) 5615 | . . . . . . . . . . 717 2512 517 391 608 666 204 Optics 564 | . . . . . . . . . . 564 . . . . . . Sensors 5051 | . . . . . . . . . . 153 2512 517 391 608 666 204 Robot Analysis Total . | . . . . . . . . . . . . . . . . . Derelict Logs Recovered . | . . . . . . . . . . . . . . . . . Drone Launches . | . . . . . . . . . . . . . . . . . Drone Recoveries . | . . . . . . . . . . . . . . . . . Exploration | -11 -10 -9 -9 -9 -9 -7 -7 -7 -7 -6 -6 -6 -6 -6 -5 -5 ------------- Run | Yrd Mat Mat Sto Gar Rec Fac Gar Fac Gar Fac Ext Cet Arc Hub Fac Gar Turns Passed 17454 | 46 786 2735 844 1566 2112 95 1275 269 1330 1330 2512 517 391 608 666 372 Spaces Moved 7807 | 38 448 962 272 563 844 39 704 152 661 673 1140 258 220 400 269 164 Core 53 | 3 . . . . . . . . . . . . . . . 50 Treads 5929 | . 170 962 272 553 844 39 704 152 661 528 429 56 220 18 255 66 Legs . | . . . . . . . . . . . . . . . . . Wheels 1557 | 35 10 . . 10 . . . . . 145 711 202 . 382 14 48 Hover 268 | . 268 . . . . . . . . . . . . . . . Flight . | . . . . . . . . . . . . . . . . . Fastest Speed 50 | 50 95 240 240 150 240 160 160 160 160 145 115 130 160 130 145 50 Average Speed 187 | 84 149 240 240 238 240 160 160 160 160 159 172 136 160 131 230 127 Slowest Speed 1150 | 95 300 240 240 240 240 160 160 160 160 170 240 240 160 160 240 1150 Overloaded Moves . | . . . . . . . . . . . . . . . . . Propulsion Burnouts . | . . . . . . . . . . . . . . . . . Robots Hopped . | . . . . . . . . . . . . . . . . . Potential Cave-ins 1 | . . . . . . . . . . 1 . . . . . . Cave-ins Triggered . | . . . . . . . . . . . . . . . . . Exploration Rate (%) 52 | 3 76 63 57 62 94 2 85 5 70 26 90 85 97 56 8 19 Regions Visited 16 Branch Regions 6 Pre-discovered Areas . | . . . . . . . . . . . . . . . . . Known Exits Taken 11 | . . 1 1 . 1 1 . 1 . 1 1 1 1 1 1 . Unknown Exits Taken 2 | 1 1 . . . . . . . . . . . . . . . Scrap Searched . | . . . . . . . . . . . . . . . . . Spaces Dug 5 | . . . . . . . . . . 5 . . . . . . Terrain Destroyed 387 | . . 38 . 94 . . 57 . 10 40 74 2 4 2 20 46 Melee . | . . . . . . . . . . . . . . . . . Projectile 41 | . . . . . . . 1 . . 7 20 2 4 2 3 2 AOE 346 | . . 38 . 94 . . 56 . 10 33 54 . . . 17 44 Terrain Rammed . | . . . . . . . . . . . . . . . . . Walls Destroyed . | . . . . . . . . . . . . . . . . . Machines Disabled . | . . . . . . . . . . . . . . . . . Actions | -11 -10 -9 -9 -9 -9 -7 -7 -7 -7 -6 -6 -6 -6 -6 -5 -5 --------- Run | Yrd Mat Mat Sto Gar Rec Fac Gar Fac Gar Fac Ext Cet Arc Hub Fac Gar Total 9849 | 49 530 1263 407 708 915 55 825 176 865 861 1564 377 251 448 293 262 Wait 815 | . 29 164 82 18 59 . 9 19 76 110 123 65 16 22 7 16 Move 7791 | 37 447 961 271 562 843 39 702 151 659 672 1139 257 219 399 269 164 Hop . | . . . . . . . . . . . . . . . . . Pick Up 90 | 6 14 23 2 3 . 2 9 2 8 5 6 5 . 1 2 2 Fast Attach 77 | 4 4 3 7 6 . 2 5 . 4 7 14 7 3 2 3 6 Attach 50 | 2 2 4 1 4 1 3 . . 5 4 7 3 . 1 2 11 Detach 8 | . . . . 1 . . . . . 2 2 1 1 . . 1 Swap 76 | . 3 17 3 12 1 . 3 1 8 8 10 2 2 2 1 3 Drop 129 | . 10 20 10 10 1 1 16 2 10 10 10 10 4 3 . 12 Fire 438 | . 21 66 31 46 8 8 14 1 46 41 56 27 6 18 9 40 Melee 25 | . . . . 2 2 . 21 . . . . . . . . . Ram . | . . . . . . . . . . . . . . . . . Kick . | . . . . . . . . . . . . . . . . . Crush 5 | . . 5 . . . . . . . . . . . . . . Escape Stasis 28 | . . . . 20 . . . . . . 1 . . . . 7 Rewire 316 | . . . . 23 . . 46 . 49 2 196 . . . . . Trap 1 | . . . . 1 . . . . . . . . . . . . Miscellaneous . | . . . . . . . . . . . . . . . . . Route ------- -11/Scrapyard -10/Materials (discovered 4 exits: *Mat x3 / [*Min]) -9/Materials (discovered 6 exits: [*Mat x2] / *Min x2 / *Sto x2) -9/Storage (discovered 2 exits: [*Mat] / Gar) -9/Garrison (discovered 2 exits: *Rec x2) -9/Recycling -7/Factory -7/Garrison (discovered 3 exits: *Fac x3) -7/Factory -7/Garrison (discovered 3 exits: *Fac x3) -6/Factory (discovered 4 exits: *Low x2 / *Ext x2) -6/Extension (discovered 3 exits: *Fac x2 / *Cet) -6/Cetus (discovered 2 exits: *Fac / *Arc) -6/Archives (discovered 3 exits: *Fac / *Hub x2) -6/Hub_04(d) -5/Factory -5/Garrison History --------- Turn | Location | Event 16 | -11/Scrapyard | Discovered new exit (range 15) 47 | -11/Scrapyard | Entered Materials 247 | -10/Materials | Discovered new exit (range 16) 308 | -10/Materials | Discovered new exit (range 11) 309 | -10/Materials | Build established: Mutant 406 | -10/Materials | Discovered new exit (range 8) 732 | -10/Materials | Discovered new exit (range 11) 833 | -10/Materials | Entered another Materials area 833 | -9/Materials | Evolved 2 slots: Utility x2 833 | -9/Materials | Discovered new exit (range 15) 1109 | -9/Materials | Discovered new exit (range 13) 1636 | -9/Materials | Discovered new exit (range 15) 2040 | -9/Materials | Discovered new exit (range 7) 2740 | -9/Materials | Build established: Scavenger-Mutant 3106 | -9/Materials | Build established: Mutant 3429 | -9/Materials | Identified exit to Mines 3429 | -9/Materials | Identified exit to Storage 3438 | -9/Materials | Discovered new exit (range 5) 3568 | -9/Materials | Entered Storage 4203 | -9/Storage | Build established: Scavenger-Mutant 4342 | -9/Storage | Discovered new exit (range 15) 4410 | -9/Storage | Identified exit to Garrison 4412 | -9/Storage | Entered Garrison 4470 | -9/Garrison | Core integrity fell below 50% 4577 | -9/Garrison | Installed Relay Interface Framework 4689 | -9/Garrison | Triggered checkpoint 4927 | -9/Garrison | Garrison Relay disabled 5145 | -9/Garrison | Discovered new exit (range 14) 5426 | -9/Garrison | Garrison Relay disabled 5638 | -9/Garrison | Triggered checkpoint 5744 | -9/Garrison | Discovered new exit (range 9) 5900 | -9/Garrison | Phase Generator disabled 5978 | -9/Garrison | Entered Recycling 5978 | -9/Recycling | Accompanied by 2 allies 5979 | -9/Recycling | Met a Zionite searching for Scraptown 6701 | -9/Recycling | Discovered new exit (range 16) 6748 | -9/Recycling | Identified exit to Factory 8090 | -9/Recycling | Entered Factory 8090 | -7/Factory | Accompanied by 1 ally 8090 | -7/Factory | Evolved 4 slots: Propulsion x2, Utility x2 8185 | -7/Factory | Identified exit to Garrison 8185 | -7/Factory | Entered Garrison 8185 | -7/Garrison | Discovered recently destroyed garrison 8560 | -7/Garrison | Discovered new exit (range 10) 8590 | -7/Garrison | Garrison Relay disabled 8626 | -7/Garrison | Expanded RIF knowledge: Command Fork 8742 | -7/Garrison | Build established: Commander-Mutant 8807 | -7/Garrison | Discovered new exit (range 9) 8819 | -7/Garrison | Identified exit to Factory 8873 | -7/Garrison | Phase Generator disabled 9110 | -7/Garrison | Garrison Relay disabled 9231 | -7/Garrison | Garrison Relay disabled 9272 | -7/Garrison | Discovered exit to Factory (range 14) 9460 | -7/Garrison | Entered Factory 9460 | -7/Factory | Accompanied by 9 allies 9727 | -7/Factory | Identified exit to Garrison 9729 | -7/Factory | Entered Garrison 9729 | -7/Garrison | Accompanied by 9 allies 9813 | -7/Garrison | Triggered checkpoint 9843 | -7/Garrison | Expanded RIF knowledge: Robot Detection 9859 | -7/Garrison | Garrison Relay disabled 10049 | -7/Garrison | Triggered checkpoint 10076 | -7/Garrison | Triggered checkpoint 10103 | -7/Garrison | Triggered checkpoint 10117 | -7/Garrison | Destroyed 7 combat bots 10123 | -7/Garrison | Lost 3 allies 10163 | -7/Garrison | Triggered checkpoint 10182 | -7/Garrison | Garrison Relay disabled 10225 | -7/Garrison | Discovered new exit (range 10) 10407 | -7/Garrison | Triggered checkpoint 10433 | -7/Garrison | Garrison Relay disabled 10596 | -7/Garrison | Discovered new exit (range 3) 10600 | -7/Garrison | Identified exit to Factory 10797 | -7/Garrison | Discovered exit to Factory (range 12) 11059 | -7/Garrison | Entered Factory 11059 | -6/Factory | Accompanied by 7 allies 11059 | -6/Factory | Evolved 2 slots: Propulsion x1, Weapon x1 11221 | -6/Factory | Spotted B-75 Beast 11230 | -6/Factory | Allies destroyed B-75 Beast 11453 | -6/Factory | Build established: Commander-Tank 11628 | -6/Factory | Fabricated Power Sword (x2) 11750 | -6/Factory | Identified exit to Lower Caves 11750 | -6/Factory | Identified exit to Extension 11978 | -6/Factory | Lost 3 allies 12389 | -6/Factory | Entered Extension 12389 | -6/Extension | Accompanied by 1 ally 12524 | -6/Extension | Build established: Scavenger-Skirmisher 12620 | -6/Extension | Spotted B-75 Beast 12641 | -6/Extension | Allies destroyed B-75 Beast 12657 | -6/Extension | Spotted B-75 Beast 12717 | -6/Extension | Allies destroyed B-75 Beast 12744 | -6/Extension | Lost 9 parts (1p3n1u4w) 12858 | -6/Extension | Discovered new exit (range 11) 12871 | -6/Extension | Identified exit to Factory 12927 | -6/Extension | Rescued a captive Derelict 12927 | -6/Extension | Rescued a captive Derelict 12989 | -6/Extension | Disrupted transfer network 13231 | -6/Extension | Rescued a captive Derelict 13418 | -6/Extension | Discovered exit to Factory (range 10) 13420 | -6/Extension | Discovered new exit (range 6) 13432 | -6/Extension | Identified exit to Cetus 14088 | -6/Extension | Rescued a captive Derelict 14089 | -6/Extension | Rescued a captive Derelict 14156 | -6/Extension | Rescued A7 14274 | -6/Extension | Rescued a captive Derelict 14275 | -6/Extension | Rescued a captive Derelict 14489 | -6/Extension | First assault squad dispatched 14655 | -6/Extension | Lost 4 allies 14782 | -6/Extension | Build established: Commander-Skirmisher 14876 | -6/Extension | Disrupted transfer network 14882 | -6/Extension | Lost 7 allies 14901 | -6/Extension | Entered Cetus 14901 | -6/Cetus | Accompanied by 11 allies (A7) 14906 | -6/Cetus | Acquired a Cetus Manufacturing Module code from A7 14918 | -6/Cetus | Spotted Cetus Guard 14918 | -6/Cetus | Spotted Cetus Guard 14921 | -6/Cetus | Spotted Cetus Guard 14921 | -6/Cetus | Spotted Cetus Guard 14926 | -6/Cetus | Destroyed Cetus Guard 14929 | -6/Cetus | Destroyed Cetus Guard 14935 | -6/Cetus | Allies destroyed Cetus Guard 14944 | -6/Cetus | Allies destroyed Cetus Guard 14956 | -6/Cetus | Lost 3 parts (1p1n1w) 15051 | -6/Cetus | Started Cetus Manufacturing Module 15076 | -6/Cetus | Manufactured an Enhanced Grunt 15081 | -6/Cetus | Escorted A7 to Cetus Mainframe 15101 | -6/Cetus | Manufactured an Enhanced Grunt 15126 | -6/Cetus | Manufactured an Enhanced Grunt 15151 | -6/Cetus | Manufactured an Enhanced Grunt 15175 | -6/Cetus | Discovered new exit (range 16) 15176 | -6/Cetus | Manufactured an Enhanced Grunt 15195 | -6/Cetus | Identified exit to Archives 15262 | -6/Cetus | Spotted Cetus Guard 15263 | -6/Cetus | Spotted Cetus Guard 15267 | -6/Cetus | Spotted Cetus Guard 15269 | -6/Cetus | Spotted Cetus Guard 15277 | -6/Cetus | Allies destroyed Cetus Guard 15288 | -6/Cetus | Destroyed Cetus Guard 15293 | -6/Cetus | Allies destroyed Cetus Guard 15295 | -6/Cetus | Allies destroyed Cetus Guard 15308 | -6/Cetus | Discovered exit to Factory (range 16) 15316 | -6/Cetus | Lost 4 allies 15321 | -6/Cetus | Met Revision 17 15377 | -6/Cetus | Build established: Commander-Tank 15418 | -6/Cetus | Entered Archives 15418 | -6/Archives | Accompanied by 11 allies (A7) 15423 | -6/Archives | Received a hacking code to weaken MAIN.C 15471 | -6/Archives | Unable to access archive contents 15504 | -6/Archives | Unable to access archive contents 15507 | -6/Archives | Discovered new exit (range 16) 15521 | -6/Archives | Unable to access archive contents 15526 | -6/Archives | Discovered new exit (range 15) 15540 | -6/Archives | Unable to access archive contents 15544 | -6/Archives | Discovered exit to Factory (range 16) 15556 | -6/Archives | Unable to access archive contents 15596 | -6/Archives | Identified exit to Hub_04(d) 15774 | -6/Archives | Build established: Scavenger-Tank 15809 | -6/Archives | Entered Hub_04(d) 15809 | -6/Hub_04(d) | Accompanied by 8 allies 16364 | -6/Hub_04(d) | Discovered exit to Factory (range 16) 16402 | -6/Hub_04(d) | Lost 3 parts (1n1u1w) 16417 | -6/Hub_04(d) | Entered Factory 16417 | -5/Factory | Accompanied by 4 allies 16417 | -5/Factory | Evolved 2 slots: Utility x2 16513 | -5/Factory | Found Prototype Device 16513 | -5/Factory | Identified Exp. Thermal Shield 17027 | -5/Factory | Garrison activated, responded to threat 17083 | -5/Factory | Identified exit to Garrison 17083 | -5/Factory | Entered Garrison 17083 | -5/Garrison | Accompanied by 2 allies 17107 | -5/Garrison | Triggered checkpoint 17142 | -5/Garrison | Garrison Relay disabled 17190 | -5/Garrison | Found embedded Infiltrators 17245 | -5/Garrison | Triggered checkpoint 17248 | -5/Garrison | Spotted B-75 Beast 17300 | -5/Garrison | Lost 3 allies 17313 | -5/Garrison | Destroyed 8 combat bots 17326 | -5/Garrison | Core integrity fell below 50% 17356 | -5/Garrison | Core integrity fell below 20% 17384 | -5/Garrison | Lost 16 parts (1p4n6u5w) 17455 | -5/Garrison | Destroyed by B-75 Beast with Heavy Machine Gun Last Messages --------------- 17411_ Arm. Huge Wheel destroyed. 17426_ Destroyed Lgt. Antimatter Reactor. 17428_ G-67 Veteran destroyed. 17430_ Dropped Hcp. Storage Unit. 17431_ Dropped Imp. Deuterium Engine. 17431_ Dropped Lgt. Nuclear Core. 17432_ Field strength at 2. 17433_ Stasis field depleted. 17447_ Lyr. Medium Armor Plating destroyed. 17449_ Triggered Stasis Trap. 17449_ A bubble of rippling energy engulfs the area. 17449_ Field strength at 94. 17449_ Field strength at 83. 17450_ Field strength at 77. 17451_ Field strength at 66. 17452_ Field strength at 60. 17453_ Critical hit (Burn: +27). 17453_ Field strength at 49. 17454_ Field strength at 43. 17455_ The unstable cave ceiling collapses. Map ----- +----------------------------------------------------+ | ?????????????????????????????????????????? | | ?????????????????????????????????????????? | | ?????????????????????????????????????????? | | ?????????????????????????????????????????? | | ?????????????????????????????????????????? | | ?????????????????????????????????????????? | | ?????????????????????????????????????????? | | ?????????????????????????????????????????? | | ?????????????????????????????????????????? | | ##???????????????????????????????????????? | | #########???????????????????????????????? | | ! #???????????????????????????????? | | [ !!! #???????????????????????????????? | | " ##""# #???????????????????????????????? | | ###### #???????????????????????????????? | | ?????# #???????????????????????????????? | | ##????# #???????????????????????????????? | | ??????# #???????????????????????????????? | | ??????# #???????????????????????????????? | | ??????# #???????????????????????????????? | | ??????# #???????????????????????????????? | | ??????# #??????????????###??????????????? | | ??????# #??????????????# #??????????????? | | ??????# #????????????###;##?????????????? | | ??????# #????????????#"#]!#?????????????? | | ??????# ##########???#" @ #?????????????? | | ??????# #???# !**#?????????????? | | ??????# #???#"gBB#?????????????? | | ??????########## #???#"#BB#?????????????? | | ???????????????# #???###g ###???????????? | | ???????????????# #?????# g #???????????? | | ????????????#### #????? g #???????????? | | ????????????# # #?????# % #???????????? | | ?????????????# + #???? [###???????????? | | ?????????????### ##### ?????????????? | | ???????????????# #????????????? | | ???????????????# ????????????? | | ???????????????###### ????????????? | | ????????????????????? #????????????? | | ????????????????????##### #????????????? | | ????????????????????????# ##????????????? | | ???????????? ??????????# #?????????????? | | ????????????? ??????# #?????????????? | | ??????????# #### ########??????? | | ??????????# = #??????? | | ??????????# =[* #### #??????? | | ????????????????????????####### #??????? | | ??????????????????????????????# #??????? | | ??????????????????????????????# #??????? | | ??????????????????????????????#####??????? | +----------------------------------------------------+ Best States ------------- Heat Dissipation 59 Energy Generation 21 Energy Capacity 825 Matter Stores 300 Matter Capacity 300 Sight Range 18 Robot Scan Range 15 Terrain Scan Density 10 Armor Coverage 600 Resistance: TH 30 Evasion (%) 50 Targeting Accuracy 11 Recoil Reduction 4 Relay Coupler Types 3 Relay Coupler Value 62 Item Schematics ----------------- Hcp. Storage Unit | -9/Materials | Scanalyzed Robot Schematics ------------------ None Fabricated ------------ Power Sword | x2 | -6/Factory | Preloaded Repaired ---------- Nothing Studied --------- Autogun | -9/Materials | Hacked Wheel | -6/Factory | Hacked Alien Tech Used ----------------- None Achievements -------------- Bumper Bots Hehehe Hydra Immobile And Lovin' It Into The Breach Main Advantage Well Done Challenges ------------ None Game ------ Seed InsulatedAntisysNeutralizer Manual? 0 Play Time 02:24:40 Cumulative 103.1 hours Start 2025.11.03 @ 14:57:11 End 2025.11.03 @ 20:32:18 Sessions 2 Manual Loads 0 Difficulty Rogue Special Mode None Game No. 138 Rogue 138 Adventurer 0 Explorer 0 Win Type - Total 1 Types 1/0/0/0/0/0/0/0/0/0 Lore% 29 Gallery% 45 Achievement% 30 Wizard Run 0 Options --------- Layout 0 ASCII 0 Keyboard 0 Movement Mouse Keybinds 0 Fullscreen 1 Font 18/Smallcaps Map View 76x50 Zoom Use 0% Tactical HUD 1 Map Filters NONE Filters NONE Steam 1 RUN: 13da1ec3-7756-498f-8c73-0a29049f2dd8